[Event "Titled Tuesday Blitz November 22 Late 2022"]
[White "Gareyev, Timur"]
[Black "Zhu, Jiner"]
[WhiteFideId "14200937"]
[BlackFideId "8608059"]
[WhiteElo "2552"]
[BlackElo "2384"]
[Result "1-0"]
[Round "11"]
[TimeControl "180+1"]
[Date "2022.11.23"]
[WhiteClock "0:00:15"]
[BlackClock "0:01:29"]

1. g4 {[%clk 0:02:40]}  d5 {[%clk 0:02:57]} 2. Bg2 {[%clk 0:02:39]}  Bxg4 {[%clk 0:02:53]} 3. c4 {[%clk 0:02:37]}  c6 {[%clk 0:02:49]} 4. Qb3 {[%clk 0:02:35]}  Qc8 {[%clk 0:02:36]} 5. cxd5 {[%clk 0:01:57]}  cxd5 {[%clk 0:02:36]} 6. Nc3 {[%clk 0:01:58]}  e6 {[%clk 0:02:35]} 7. Qa4+ {[%clk 0:01:58]}  Nc6 {[%clk 0:02:35]} 8. Qxg4 {[%clk 0:01:57]}  Nf6 {[%clk 0:02:34]} 9. Qa4 {[%clk 0:01:56]}  g6 {[%clk 0:02:27]} 10. Nf3 {[%clk 0:01:52]}  Bg7 {[%clk 0:02:26]} 11. d3 {[%clk 0:01:49]}  O-O {[%clk 0:02:25]} 12. h4 {[%clk 0:01:47]}  h5 {[%clk 0:02:25]} 13. Bg5 {[%clk 0:01:46]}  a6 {[%clk 0:02:24]} 14. Rc1 {[%clk 0:01:43]}  Qd7 {[%clk 0:02:23]} 15. O-O {[%clk 0:01:40]}  b5 {[%clk 0:02:15]} 16. Qf4 {[%clk 0:01:39]}  Ng4 {[%clk 0:02:14]} 17. Qg3 {[%clk 0:01:35]}  b4 {[%clk 0:02:10]} 18. Na4 {[%clk 0:01:30]}  Nd4 {[%clk 0:02:09]} 19. Nxd4 {[%clk 0:01:29]}  Qxa4 {[%clk 0:02:09]} 20. Nc6 {[%clk 0:01:09]}  Qxa2 {[%clk 0:02:04]} 21. f3 {[%clk 0:00:58]}  Nf6 {[%clk 0:02:04]} 22. Qf4 {[%clk 0:00:48]}  Nh7 {[%clk 0:02:03]} 23. Bh6 {[%clk 0:00:39]}  Qxb2 {[%clk 0:01:57]} 24. d4 {[%clk 0:00:30]}  Bxh6 {[%clk 0:01:29]} 25. Qxh6 {[%clk 0:00:28]}  a5 {[%clk 0:01:28]} 26. Ne7+ {[%clk 0:00:15]}  Kh8 {[%clk 0:01:28]} 27. Nxg6+ {[%clk 0:00:15]}  fxg6 {[%clk 0:01:29]} 28. Rc7 {[%clk 0:00:15]} 1-0


[Site "https://www.chess.com"]

[Event "Titled Tuesday Blitz November 22 Late 2022"]
[White "Graif, William"]
[Black "Dudzinski, Pawel"]
[WhiteFideId "2609835"]
[BlackFideId "1117890"]
[WhiteElo "2205"]
[BlackElo "2086"]
[Result "0-1"]
[Round "11"]
[TimeControl "180+1"]
[Date "2022.11.23"]
[WhiteClock "0:00:14"]
[BlackClock "0:00:11"]

1. e4 {[%clk 0:02:54]}  c6 {[%clk 0:03:00]} 2. d4 {[%clk 0:02:53]}  d5 {[%clk 0:03:01]} 3. Nc3 {[%clk 0:02:53]}  g6 {[%clk 0:02:59]} 4. Nf3 {[%clk 0:02:33]}  Bg7 {[%clk 0:02:59]} 5. e5 {[%clk 0:02:16]}  Nh6 {[%clk 0:02:56]} 6. Be2 {[%clk 0:02:07]}  f6 {[%clk 0:02:56]} 7. O-O {[%clk 0:02:00]}  O-O {[%clk 0:02:55]} 8. exf6 {[%clk 0:01:55]}  exf6 {[%clk 0:02:56]} 9. Re1 {[%clk 0:01:48]}  Nf7 {[%clk 0:02:56]} 10. Bd3 {[%clk 0:01:39]}  Nd7 {[%clk 0:02:55]} 11. a4 {[%clk 0:01:25]}  f5 {[%clk 0:02:53]} 12. h4 {[%clk 0:00:58]}  Nf6 {[%clk 0:02:47]} 13. Ng5 {[%clk 0:00:50]}  Ne4 {[%clk 0:02:42]} 14. Nxf7 {[%clk 0:00:41]}  Rxf7 {[%clk 0:02:43]} 15. g3 {[%clk 0:00:37]}  Bxd4 {[%clk 0:02:32]} 16. Bxe4 {[%clk 0:00:25]}  dxe4 {[%clk 0:02:31]} 17. Be3 {[%clk 0:00:20]}  Bf6 {[%clk 0:02:23]} 18. Qxd8+ {[%clk 0:00:19]}  Bxd8 {[%clk 0:02:24]} 19. Rad1 {[%clk 0:00:19]}  Bd7 {[%clk 0:02:12]} 20. Ne2 {[%clk 0:00:18]}  Bf6 {[%clk 0:02:08]} 21. Bd4 {[%clk 0:00:18]}  Be6 {[%clk 0:01:52]} 22. Bxf6 {[%clk 0:00:18]}  Rxf6 {[%clk 0:01:53]} 23. Rd6 {[%clk 0:00:17]}  Kg7 {[%clk 0:01:31]} 24. Nf4 {[%clk 0:00:17]}  Bf7 {[%clk 0:01:31]} 25. Rd7 {[%clk 0:00:17]}  Rb8 {[%clk 0:01:27]} 26. Red1 {[%clk 0:00:17]}  Kg8 {[%clk 0:01:13]} 27. Rc7 {[%clk 0:00:17]}  Be8 {[%clk 0:01:11]} 28. Re7 {[%clk 0:00:15]}  Rf7 {[%clk 0:01:10]} 29. Re5 {[%clk 0:00:14]}  Kf8 {[%clk 0:01:07]} 30. Rd6 {[%clk 0:00:14]}  Bd7 {[%clk 0:01:04]} 31. b3 {[%clk 0:00:12]}  Re8 {[%clk 0:01:02]} 32. Rxe8+ {[%clk 0:00:11]}  Kxe8 {[%clk 0:01:01]} 33. h5 {[%clk 0:00:11]}  Ke7 {[%clk 0:00:41]} 34. hxg6 {[%clk 0:00:11]}  Kxd6 {[%clk 0:00:41]} 35. gxf7 {[%clk 0:00:11]}  Ke7 {[%clk 0:00:42]} 36. Kf1 {[%clk 0:00:10]}  Kxf7 {[%clk 0:00:42]} 37. Ke2 {[%clk 0:00:11]}  Kf6 {[%clk 0:00:42]} 38. Ke3 {[%clk 0:00:11]}  Ke5 {[%clk 0:00:42]} 39. Ng2 {[%clk 0:00:09]}  c5 {[%clk 0:00:41]} 40. c3 {[%clk 0:00:09]}  b6 {[%clk 0:00:39]} 41. Nf4 {[%clk 0:00:08]}  a6 {[%clk 0:00:38]} 42. Ne2 {[%clk 0:00:07]}  a5 {[%clk 0:00:30]} 43. c4 {[%clk 0:00:06]}  Be8 {[%clk 0:00:29]} 44. Nc3 {[%clk 0:00:06]}  Bf7 {[%clk 0:00:28]} 45. Nb5 {[%clk 0:00:06]}  Bh5 {[%clk 0:00:27]} 46. Nc3 {[%clk 0:00:05]}  Bf7 {[%clk 0:00:21]} 47. Nb5 {[%clk 0:00:05]}  h6 {[%clk 0:00:22]} 48. Na7 {[%clk 0:00:04]}  Bh5 {[%clk 0:00:22]} 49. Nc8 {[%clk 0:00:04]}  Bd1 {[%clk 0:00:20]} 50. Nxb6 {[%clk 0:00:04]}  Bxb3 {[%clk 0:00:20]} 51. Nd7+ {[%clk 0:00:04]}  Kd6 {[%clk 0:00:20]} 52. Nb6 {[%clk 0:00:04]}  Kc6 {[%clk 0:00:20]} 53. Nd5 {[%clk 0:00:03]}  Bxc4 {[%clk 0:00:17]} 54. Ne7+ {[%clk 0:00:04]}  Kd7 {[%clk 0:00:15]} 55. Nxf5 {[%clk 0:00:05]}  Bb3 {[%clk 0:00:14]} 56. Nxh6 {[%clk 0:00:05]}  Bc2 {[%clk 0:00:11]} 57. Nf5 {[%clk 0:00:04]}  Ke6 {[%clk 0:00:11]} 58. g4 {[%clk 0:00:04]}  Ke5 {[%clk 0:00:08]} 59. Ng3 {[%clk 0:00:04]}  Bxa4 {[%clk 0:00:07]} 60. Ne2 {[%clk 0:00:04]}  Bc6 {[%clk 0:00:06]} 61. Nc3 {[%clk 0:00:05]}  a4 {[%clk 0:00:06]} 62. g5 {[%clk 0:00:04]}  a3 {[%clk 0:00:06]} 63. g6 {[%clk 0:00:04]}  Kf6 {[%clk 0:00:06]} 64. Na2 {[%clk 0:00:02]}  Kxg6 {[%clk 0:00:06]} 65. Kd2 {[%clk 0:00:03]}  Kf5 {[%clk 0:00:06]} 66. Kc3 {[%clk 0:00:04]}  Kf4 {[%clk 0:00:06]} 67. Kb3 {[%clk 0:00:03]}  Bd5+ {[%clk 0:00:06]} 68. Kxa3 {[%clk 0:00:03]}  Bxa2 {[%clk 0:00:07]} 69. Kxa2 {[%clk 0:00:04]}  Kf3 {[%clk 0:00:07]} 70. Kb3 {[%clk 0:00:05]}  Kxf2 {[%clk 0:00:08]} 71. Kc3 {[%clk 0:00:06]}  e3 {[%clk 0:00:09]} 72. Kc4 {[%clk 0:00:07]}  e2 {[%clk 0:00:10]} 73. Kxc5 {[%clk 0:00:07]}  e1=Q {[%clk 0:00:10]} 74. Kd6 {[%clk 0:00:08]}  Qe4 {[%clk 0:00:11]} 75. Kd7 {[%clk 0:00:08]}  Kf3 {[%clk 0:00:11]} 76. Kc7 {[%clk 0:00:09]}  Kf4 {[%clk 0:00:12]} 77. Kd7 {[%clk 0:00:09]}  Kf5 {[%clk 0:00:13]} 78. Kd6 {[%clk 0:00:10]}  Kf6 {[%clk 0:00:14]} 79. Kd7 {[%clk 0:00:11]}  Qe5 {[%clk 0:00:14]} 80. Kc6 {[%clk 0:00:12]}  Ke7 {[%clk 0:00:13]} 81. Kb6 {[%clk 0:00:12]}  Qc3 {[%clk 0:00:13]} 82. Ka6 {[%clk 0:00:12]}  Qb2 {[%clk 0:00:13]} 83. Ka7 {[%clk 0:00:13]}  Kd7 {[%clk 0:00:14]} 84. Ka8 {[%clk 0:00:13]}  Kc6 {[%clk 0:00:14]} 85. Ka7 {[%clk 0:00:14]}  Qb7# {[%clk 0:00:11]} 0-1


[Site "https://www.chess.com"]

[Event "Titled Tuesday Blitz November 22 Late 2022"]
[White "Janaszak, Dawid"]
[Black "Oro, Faustino"]
[WhiteFideId "1119206"]
[BlackFideId "20000197"]
[WhiteElo "2226"]
[BlackElo "2066"]
[Result "1-0"]
[Round "11"]
[TimeControl "180+1"]
[Date "2022.11.23"]
[WhiteClock "0:02:17"]
[BlackClock "0:01:53"]

1. Nc3 {[%clk 0:03:00]}  Nf6 {[%clk 0:02:58]} 2. e4 {[%clk 0:02:59]}  e5 {[%clk 0:02:58]} 3. d4 {[%clk 0:02:59]}  exd4 {[%clk 0:02:57]} 4. Qxd4 {[%clk 0:03:00]}  Nc6 {[%clk 0:02:57]} 5. Qd3 {[%clk 0:03:00]}  Bc5 {[%clk 0:02:55]} 6. Bf4 {[%clk 0:02:59]}  d6 {[%clk 0:02:54]} 7. f3 {[%clk 0:02:57]}  Be6 {[%clk 0:02:51]} 8. O-O-O {[%clk 0:02:56]}  Qd7 {[%clk 0:02:50]} 9. Nd5 {[%clk 0:02:56]}  Bxd5 {[%clk 0:02:45]} 10. exd5 {[%clk 0:02:56]}  Ne7 {[%clk 0:02:46]} 11. Qb3 {[%clk 0:02:50]}  O-O-O {[%clk 0:02:41]} 12. Nh3 {[%clk 0:02:40]}  Ng6 {[%clk 0:02:31]} 13. Bg5 {[%clk 0:02:33]}  Qe7 {[%clk 0:01:53]} 14. Bb5 {[%clk 0:02:17]} 1-0


[Site "https://www.chess.com"]

[Event "Titled Tuesday Blitz November 22 Late 2022"]
[White "Kopylov, Alexander A."]
[Black "Gritsenko, Nikolai"]
[WhiteFideId "4164857"]
[BlackFideId "14112493"]
[WhiteElo "2436"]
[BlackElo "2389"]
[Result "0-1"]
[Round "11"]
[TimeControl "180+1"]
[Date "2022.11.23"]
[WhiteClock "0:00:04"]
[BlackClock "0:00:04"]

1. e4 {[%clk 0:01:22]}  d6 {[%clk 0:02:57]} 2. d4 {[%clk 0:01:21]}  Nf6 {[%clk 0:02:58]} 3. Nc3 {[%clk 0:01:21]}  g6 {[%clk 0:02:58]} 4. g3 {[%clk 0:01:22]}  Bg7 {[%clk 0:02:58]} 5. Bg2 {[%clk 0:01:23]}  O-O {[%clk 0:02:58]} 6. Nge2 {[%clk 0:01:23]}  Nc6 {[%clk 0:02:58]} 7. d5 {[%clk 0:01:23]}  Ne5 {[%clk 0:02:55]} 8. f4 {[%clk 0:01:22]}  Ned7 {[%clk 0:02:54]} 9. O-O {[%clk 0:01:22]}  c6 {[%clk 0:02:55]} 10. h3 {[%clk 0:01:16]}  h5 {[%clk 0:02:29]} 11. dxc6 {[%clk 0:01:09]}  bxc6 {[%clk 0:02:29]} 12. Nd4 {[%clk 0:01:09]}  e5 {[%clk 0:01:50]} 13. Nf3 {[%clk 0:01:06]}  Qc7 {[%clk 0:01:34]} 14. f5 {[%clk 0:01:04]}  Nc5 {[%clk 0:00:50]} 15. Nh4 {[%clk 0:01:03]}  Kh7 {[%clk 0:00:50]} 16. g4 {[%clk 0:01:00]}  d5 {[%clk 0:00:43]} 17. g5 {[%clk 0:00:59]}  Nfxe4 {[%clk 0:00:42]} 18. Nxe4 {[%clk 0:00:59]}  Nxe4 {[%clk 0:00:40]} 19. f6 {[%clk 0:00:58]}  Bh8 {[%clk 0:00:35]} 20. Be3 {[%clk 0:00:41]}  Be6 {[%clk 0:00:32]} 21. c3 {[%clk 0:00:31]}  Rad8 {[%clk 0:00:28]} 22. Nf3 {[%clk 0:00:29]}  c5 {[%clk 0:00:26]} 23. Nd2 {[%clk 0:00:25]}  Nxd2 {[%clk 0:00:25]} 24. Qxd2 {[%clk 0:00:25]}  d4 {[%clk 0:00:25]} 25. cxd4 {[%clk 0:00:25]}  cxd4 {[%clk 0:00:25]} 26. Bf2 {[%clk 0:00:24]}  Bd5 {[%clk 0:00:23]} 27. Bg3 {[%clk 0:00:18]}  Bxg2 {[%clk 0:00:20]} 28. Qxg2 {[%clk 0:00:18]}  Rfe8 {[%clk 0:00:19]} 29. Rac1 {[%clk 0:00:16]}  Qd7 {[%clk 0:00:16]} 30. Rfe1 {[%clk 0:00:13]}  e4 {[%clk 0:00:16]} 31. Rxe4 {[%clk 0:00:13]}  Rxe4 {[%clk 0:00:16]} 32. Qxe4 {[%clk 0:00:14]}  Qxh3 {[%clk 0:00:16]} 33. Bf2 {[%clk 0:00:10]}  d3 {[%clk 0:00:14]} 34. Rc7 {[%clk 0:00:10]}  Rf8 {[%clk 0:00:12]} 35. Rc3 {[%clk 0:00:05]}  d2 {[%clk 0:00:10]} 36. Rxh3 {[%clk 0:00:05]}  d1=Q+ {[%clk 0:00:11]} 37. Kg2 {[%clk 0:00:06]}  Kg8 {[%clk 0:00:09]} 38. Rd3 {[%clk 0:00:06]}  Qb1 {[%clk 0:00:08]} 39. b3 {[%clk 0:00:05]}  Qxa2 {[%clk 0:00:08]} 40. Qd5 {[%clk 0:00:04]}  Qe2 {[%clk 0:00:08]} 41. Re3 {[%clk 0:00:04]}  Qg4+ {[%clk 0:00:07]} 42. Bg3 {[%clk 0:00:04]}  h4 {[%clk 0:00:07]} 43. Rd3 {[%clk 0:00:03]}  hxg3 {[%clk 0:00:07]} 44. Rxg3 {[%clk 0:00:04]}  Qe2+ {[%clk 0:00:07]} 45. Kh3 {[%clk 0:00:05]}  Rc8 {[%clk 0:00:07]} 46. Qd7 {[%clk 0:00:03]}  Qf1+ {[%clk 0:00:06]} 47. Kh4 {[%clk 0:00:02]}  Qh1+ {[%clk 0:00:05]} 48. Kg4 {[%clk 0:00:03]}  Qh5+ {[%clk 0:00:04]} 49. Kf4 {[%clk 0:00:03]}  Rf8 {[%clk 0:00:05]} 50. Qe7 {[%clk 0:00:03]}  Qh4+ {[%clk 0:00:04]} 51. Kf3 {[%clk 0:00:03]}  Qh1+ {[%clk 0:00:04]} 52. Rg2 {[%clk 0:00:04]}  Rc8 {[%clk 0:00:04]} 53. Qe5 {[%clk 0:00:02]}  Rd8 {[%clk 0:00:03]} 54. Qe4 {[%clk 0:00:02]}  Rc8 {[%clk 0:00:02]} 55. Kg4 {[%clk 0:00:02]}  Qd1+ {[%clk 0:00:02]} 56. Kf4 {[%clk 0:00:01]}  Rd8 {[%clk 0:00:02]} 57. Re2 {[%clk 0:00:02]}  Rd4 {[%clk 0:00:02]} 58. Kf3 {[%clk 0:00:02]}  Rxe4 {[%clk 0:00:02]} 59. Kxe4 {[%clk 0:00:03]}  Qxb3 {[%clk 0:00:03]} 60. Kd4 {[%clk 0:00:02]}  Qe6 {[%clk 0:00:03]} 61. Rxe6 {[%clk 0:00:02]}  fxe6 {[%clk 0:00:04]} 62. Ke5 {[%clk 0:00:03]}  Kf7 {[%clk 0:00:04]} 63. Kd6 {[%clk 0:00:04]}  Bxf6 {[%clk 0:00:05]} 64. Kc5 {[%clk 0:00:04]}  Bxg5 {[%clk 0:00:04]} 0-1


[Site "https://www.chess.com"]

[Event "Titled Tuesday Blitz November 22 Late 2022"]
[White "Koutlas, Nikolaos"]
[Black "Bogaudinov, Rushan"]
[WhiteFideId "25827138"]
[BlackFideId "4129288"]
[WhiteElo "2167"]
[BlackElo "1997"]
[Result "1-0"]
[Round "11"]
[TimeControl "180+1"]
[Date "2022.11.23"]
[WhiteClock "0:00:10"]
[BlackClock "0:00:14"]

1. e4 {[%clk 0:03:00]}  c5 {[%clk 0:02:59]} 2. Nf3 {[%clk 0:03:00]}  Nc6 {[%clk 0:02:59]} 3. d4 {[%clk 0:03:00]}  cxd4 {[%clk 0:02:59]} 4. Nxd4 {[%clk 0:03:01]}  g6 {[%clk 0:02:47]} 5. c4 {[%clk 0:03:00]}  Bg7 {[%clk 0:02:47]} 6. Be3 {[%clk 0:03:00]}  Nf6 {[%clk 0:02:47]} 7. Nc3 {[%clk 0:03:00]}  O-O {[%clk 0:02:47]} 8. Be2 {[%clk 0:03:00]}  b6 {[%clk 0:02:46]} 9. O-O {[%clk 0:02:44]}  Bb7 {[%clk 0:02:46]} 10. Qd2 {[%clk 0:02:32]}  d6 {[%clk 0:02:39]} 11. f3 {[%clk 0:02:32]}  Ne5 {[%clk 0:02:37]} 12. Nd5 {[%clk 0:02:30]}  Rc8 {[%clk 0:02:34]} 13. b3 {[%clk 0:02:30]}  e6 {[%clk 0:02:29]} 14. Nxf6+ {[%clk 0:02:27]}  Bxf6 {[%clk 0:02:27]} 15. Nb5 {[%clk 0:02:22]}  d5 {[%clk 0:02:24]} 16. Nxa7 {[%clk 0:02:19]}  Ra8 {[%clk 0:02:19]} 17. Nb5 {[%clk 0:02:18]}  dxe4 {[%clk 0:02:05]} 18. fxe4 {[%clk 0:02:12]}  Bxe4 {[%clk 0:01:56]} 19. Rxf6 {[%clk 0:01:51]}  Qxf6 {[%clk 0:01:53]} 20. Rf1 {[%clk 0:01:51]}  Qd8 {[%clk 0:01:30]} 21. Qc3 {[%clk 0:01:49]}  f6 {[%clk 0:01:14]} 22. Rd1 {[%clk 0:01:44]}  Qb8 {[%clk 0:01:08]} 23. Nd6 {[%clk 0:01:35]}  Rxa2 {[%clk 0:01:01]} 24. Nxe4 {[%clk 0:01:27]}  Rxe2 {[%clk 0:01:01]} 25. Rf1 {[%clk 0:00:55]}  Ng4 {[%clk 0:00:52]} 26. Bf4 {[%clk 0:00:46]}  e5 {[%clk 0:00:52]} 27. Ng3 {[%clk 0:00:34]}  Ra2 {[%clk 0:00:42]} 28. Bc1 {[%clk 0:00:30]}  b5 {[%clk 0:00:39]} 29. h3 {[%clk 0:00:27]}  b4 {[%clk 0:00:33]} 30. Qf3 {[%clk 0:00:21]}  Qa7+ {[%clk 0:00:27]} 31. Kh1 {[%clk 0:00:17]}  Nf2+ {[%clk 0:00:26]} 32. Kh2 {[%clk 0:00:18]}  e4 {[%clk 0:00:20]} 33. Nxe4 {[%clk 0:00:11]}  Nxe4 {[%clk 0:00:20]} 34. Qxe4 {[%clk 0:00:12]}  Qc7+ {[%clk 0:00:17]} 35. Bf4 {[%clk 0:00:12]}  Qd7 {[%clk 0:00:17]} 36. Qf3 {[%clk 0:00:09]}  g5 {[%clk 0:00:16]} 37. Bg3 {[%clk 0:00:08]}  Kg7 {[%clk 0:00:15]} 38. Rd1 {[%clk 0:00:08]}  Qf7 {[%clk 0:00:14]} 39. Qf5 {[%clk 0:00:06]}  Ra7 {[%clk 0:00:13]} 40. c5 {[%clk 0:00:06]}  Re8 {[%clk 0:00:13]} 41. c6 {[%clk 0:00:06]}  Re2 {[%clk 0:00:12]} 42. c7 {[%clk 0:00:07]}  Rxc7 {[%clk 0:00:11]} 43. Bxc7 {[%clk 0:00:04]}  Qxc7+ {[%clk 0:00:12]} 44. Kh1 {[%clk 0:00:05]}  Re7 {[%clk 0:00:12]} 45. Qg4 {[%clk 0:00:05]}  Qc2 {[%clk 0:00:10]} 46. Rf1 {[%clk 0:00:04]}  Qc3 {[%clk 0:00:10]} 47. Qf5 {[%clk 0:00:04]}  Rf7 {[%clk 0:00:09]} 48. Rf3 {[%clk 0:00:05]}  Qc1+ {[%clk 0:00:08]} 49. Kh2 {[%clk 0:00:05]}  Qc7+ {[%clk 0:00:09]} 50. Kh1 {[%clk 0:00:05]}  Qd6 {[%clk 0:00:09]} 51. Qe4 {[%clk 0:00:04]}  Re7 {[%clk 0:00:09]} 52. Qc4 {[%clk 0:00:03]}  Re1+ {[%clk 0:00:09]} 53. Rf1 {[%clk 0:00:04]}  Rxf1+ {[%clk 0:00:07]} 54. Qxf1 {[%clk 0:00:05]}  Qd5 {[%clk 0:00:06]} 55. Qb1 {[%clk 0:00:03]}  f5 {[%clk 0:00:06]} 56. Qa1+ {[%clk 0:00:03]}  Kg6 {[%clk 0:00:06]} 57. Qa6+ {[%clk 0:00:03]}  Kh5 {[%clk 0:00:06]} 58. Qe2+ {[%clk 0:00:03]}  g4 {[%clk 0:00:06]} 59. hxg4+ {[%clk 0:00:04]}  fxg4 {[%clk 0:00:06]} 60. Qe8+ {[%clk 0:00:05]}  Kg5 {[%clk 0:00:07]} 61. Qe7+ {[%clk 0:00:04]}  Kf4 {[%clk 0:00:07]} 62. Qf6+ {[%clk 0:00:04]}  Ke4 {[%clk 0:00:07]} 63. Qg5 {[%clk 0:00:03]}  Kd3 {[%clk 0:00:08]} 64. Qxd5+ {[%clk 0:00:02]}  Kc3 {[%clk 0:00:08]} 65. Qg5 {[%clk 0:00:03]}  Kxb3 {[%clk 0:00:08]} 66. Qxg4 {[%clk 0:00:04]}  Ka2 {[%clk 0:00:09]} 67. Qh5 {[%clk 0:00:05]}  b3 {[%clk 0:00:09]} 68. Qxh7 {[%clk 0:00:06]}  b2 {[%clk 0:00:10]} 69. Qa7+ {[%clk 0:00:06]}  Kb3 {[%clk 0:00:10]} 70. Qb6+ {[%clk 0:00:07]}  Kc2 {[%clk 0:00:11]} 71. g4 {[%clk 0:00:07]}  b1=Q+ {[%clk 0:00:11]} 72. Qxb1+ {[%clk 0:00:07]}  Kxb1 {[%clk 0:00:12]} 73. g5 {[%clk 0:00:08]}  Kc2 {[%clk 0:00:13]} 74. g6 {[%clk 0:00:09]}  Kd3 {[%clk 0:00:13]} 75. g7 {[%clk 0:00:10]}  Ke4 {[%clk 0:00:14]} 76. g8=Q {[%clk 0:00:10]} 1-0


[Site "https://www.chess.com"]

[Event "Titled Tuesday Blitz November 22 Late 2022"]
[White "Kovacevic, Radmila"]
[Black "Arnold, Ken"]
[WhiteFideId "933171"]
[BlackFideId "2056836"]
[WhiteElo "2208"]
[BlackElo "2359"]
[Result "0-1"]
[Round "11"]
[TimeControl "180+1"]
[Date "2022.11.23"]
[WhiteClock "0:00:15"]
[BlackClock "0:00:51"]

1. e4 {[%clk 0:03:00]}  c5 {[%clk 0:02:58]} 2. Be2 {[%clk 0:03:01]}  Nc6 {[%clk 0:02:58]} 3. f4 {[%clk 0:03:01]}  e6 {[%clk 0:02:56]} 4. Nf3 {[%clk 0:03:01]}  Nf6 {[%clk 0:02:56]} 5. d3 {[%clk 0:03:01]}  d5 {[%clk 0:02:56]} 6. e5 {[%clk 0:02:54]}  Nd7 {[%clk 0:02:55]} 7. O-O {[%clk 0:02:54]}  Be7 {[%clk 0:02:55]} 8. Kh1 {[%clk 0:02:53]}  O-O {[%clk 0:02:55]} 9. c4 {[%clk 0:02:53]}  f6 {[%clk 0:02:49]} 10. cxd5 {[%clk 0:02:51]}  exd5 {[%clk 0:02:48]} 11. e6 {[%clk 0:02:51]}  Nb6 {[%clk 0:02:46]} 12. f5 {[%clk 0:02:51]}  d4 {[%clk 0:02:44]} 13. Nbd2 {[%clk 0:02:44]}  Nd5 {[%clk 0:02:43]} 14. Ne4 {[%clk 0:02:41]}  b6 {[%clk 0:02:40]} 15. Qe1 {[%clk 0:02:37]}  Bb7 {[%clk 0:02:36]} 16. Qg3 {[%clk 0:02:36]}  Ne3 {[%clk 0:02:30]} 17. Bxe3 {[%clk 0:02:28]}  dxe3 {[%clk 0:02:29]} 18. Nh4 {[%clk 0:02:28]}  Nd4 {[%clk 0:02:24]} 19. Bh5 {[%clk 0:02:09]}  Bxe4 {[%clk 0:02:22]} 20. Bf7+ {[%clk 0:02:07]}  Rxf7 {[%clk 0:02:18]} 21. exf7+ {[%clk 0:02:08]}  Kxf7 {[%clk 0:02:13]} 22. dxe4 {[%clk 0:02:08]}  e2 {[%clk 0:02:12]} 23. Rfc1 {[%clk 0:01:51]}  Qd6 {[%clk 0:02:10]} 24. Qe3 {[%clk 0:01:41]}  Qe5 {[%clk 0:02:07]} 25. Nf3 {[%clk 0:01:37]}  Nxf3 {[%clk 0:02:03]} 26. gxf3 {[%clk 0:01:38]}  Qxb2 {[%clk 0:01:43]} 27. Re1 {[%clk 0:01:36]}  Rd8 {[%clk 0:01:39]} 28. Qb3+ {[%clk 0:01:12]}  Qxb3 {[%clk 0:01:37]} 29. axb3 {[%clk 0:01:13]}  a5 {[%clk 0:01:16]} 30. Rxe2 {[%clk 0:01:13]}  Rd3 {[%clk 0:01:14]} 31. b4 {[%clk 0:01:09]}  cxb4 {[%clk 0:01:13]} 32. Kg2 {[%clk 0:01:08]}  Bc5 {[%clk 0:01:13]} 33. Raa2 {[%clk 0:00:57]}  b3 {[%clk 0:01:11]} 34. Rad2 {[%clk 0:00:56]}  Rxd2 {[%clk 0:01:10]} 35. Rxd2 {[%clk 0:00:57]}  a4 {[%clk 0:01:09]} 36. Kf1 {[%clk 0:00:46]}  a3 {[%clk 0:01:07]} 37. Rd7+ {[%clk 0:00:37]}  Ke8 {[%clk 0:01:06]} 38. Rxg7 {[%clk 0:00:34]}  b2 {[%clk 0:01:05]} 39. Rxh7 {[%clk 0:00:33]}  b1=Q+ {[%clk 0:01:05]} 40. Kg2 {[%clk 0:00:32]}  a2 {[%clk 0:01:05]} 41. Rh8+ {[%clk 0:00:29]}  Kf7 {[%clk 0:01:04]} 42. Rh7+ {[%clk 0:00:30]}  Kg8 {[%clk 0:01:04]} 43. Rh4 {[%clk 0:00:25]}  a1=Q {[%clk 0:01:03]} 44. Rg4+ {[%clk 0:00:24]}  Kf7 {[%clk 0:01:03]} 45. Kh3 {[%clk 0:00:20]}  Qf1+ {[%clk 0:01:03]} 46. Kh4 {[%clk 0:00:20]}  Qae1+ {[%clk 0:01:03]} 47. Rg3 {[%clk 0:00:18]}  Bd6 {[%clk 0:00:59]} 48. e5 {[%clk 0:00:18]}  Bxe5 {[%clk 0:00:59]} 49. f4 {[%clk 0:00:17]}  Bxf4 {[%clk 0:00:57]} 50. Kh5 {[%clk 0:00:17]}  Bxg3 {[%clk 0:00:56]} 51. hxg3 {[%clk 0:00:16]}  Qxf5+ {[%clk 0:00:56]} 52. Kh4 {[%clk 0:00:15]}  Qh1# {[%clk 0:00:51]} 0-1


[Site "https://www.chess.com"]

[Event "Titled Tuesday Blitz November 22 Late 2022"]
[White "Lopez Mulet, Inigo"]
[Black "Gascon Del Nogal, Jose Rafael"]
[WhiteFideId "22235620"]
[BlackFideId "3902463"]
[WhiteElo "2289"]
[BlackElo "2473"]
[Result "1-0"]
[Round "11"]
[TimeControl "180+1"]
[Date "2022.11.23"]
[WhiteClock "0:00:11"]
[BlackClock "0:00:02"]

1. d4 {[%clk 0:02:57]}  Nf6 {[%clk 0:02:59]} 2. c4 {[%clk 0:02:57]}  e6 {[%clk 0:02:58]} 3. g3 {[%clk 0:02:55]}  d5 {[%clk 0:02:58]} 4. Bg2 {[%clk 0:02:56]}  dxc4 {[%clk 0:02:58]} 5. Qa4+ {[%clk 0:02:51]}  Nbd7 {[%clk 0:02:44]} 6. Nf3 {[%clk 0:02:48]}  a6 {[%clk 0:02:42]} 7. Qxc4 {[%clk 0:02:48]}  c5 {[%clk 0:02:42]} 8. O-O {[%clk 0:02:47]}  b5 {[%clk 0:02:41]} 9. Qc2 {[%clk 0:02:47]}  Bb7 {[%clk 0:02:42]} 10. Rd1 {[%clk 0:02:45]}  Rc8 {[%clk 0:02:39]} 11. Nc3 {[%clk 0:02:44]}  Rc6 {[%clk 0:02:39]} 12. dxc5 {[%clk 0:02:20]}  Rxc5 {[%clk 0:02:28]} 13. Be3 {[%clk 0:02:19]}  Rc8 {[%clk 0:02:28]} 14. Qb3 {[%clk 0:02:09]}  Qc7 {[%clk 0:02:16]} 15. Rac1 {[%clk 0:02:09]}  Qb8 {[%clk 0:02:15]} 16. Nd4 {[%clk 0:01:56]}  Bxg2 {[%clk 0:02:13]} 17. Kxg2 {[%clk 0:01:57]}  Qb7+ {[%clk 0:02:12]} 18. f3 {[%clk 0:01:58]}  Nc5 {[%clk 0:02:08]} 19. Qc2 {[%clk 0:01:56]}  Be7 {[%clk 0:02:05]} 20. Qd2 {[%clk 0:01:48]}  O-O {[%clk 0:02:05]} 21. b4 {[%clk 0:01:48]}  Na4 {[%clk 0:02:02]} 22. Nxa4 {[%clk 0:01:42]}  bxa4 {[%clk 0:02:03]} 23. a3 {[%clk 0:01:43]}  Nd5 {[%clk 0:02:01]} 24. Bf2 {[%clk 0:01:43]}  Rxc1 {[%clk 0:01:57]} 25. Rxc1 {[%clk 0:01:43]}  Rc8 {[%clk 0:01:58]} 26. e4 {[%clk 0:01:42]}  Nf6 {[%clk 0:01:50]} 27. h4 {[%clk 0:01:34]}  h6 {[%clk 0:01:47]} 28. Qd1 {[%clk 0:01:33]}  Rd8 {[%clk 0:01:27]} 29. Qxa4 {[%clk 0:01:30]}  Nxe4 {[%clk 0:01:14]} 30. Nc6 {[%clk 0:01:03]}  Nd2 {[%clk 0:01:03]} 31. Nxd8 {[%clk 0:01:02]}  Qxf3+ {[%clk 0:01:02]} 32. Kg1 {[%clk 0:01:02]}  Ne4 {[%clk 0:00:33]} 33. Qe8+ {[%clk 0:00:54]}  Kh7 {[%clk 0:00:25]} 34. Qxf7 {[%clk 0:00:35]}  Bf6 {[%clk 0:00:26]} 35. Rf1 {[%clk 0:00:23]}  Nxg3 {[%clk 0:00:24]} 36. Bxg3 {[%clk 0:00:13]}  Qxg3+ {[%clk 0:00:23]} 37. Kh1 {[%clk 0:00:14]}  Qxh4+ {[%clk 0:00:19]} 38. Kg2 {[%clk 0:00:14]}  Qg4+ {[%clk 0:00:19]} 39. Kh1 {[%clk 0:00:12]}  Qh4+ {[%clk 0:00:04]} 40. Kg2 {[%clk 0:00:12]}  Bxd8 {[%clk 0:00:02]} 41. Qf3 {[%clk 0:00:12]}  Bg5 {[%clk 0:00:02]} 42. Qd3+ {[%clk 0:00:12]}  Kg8 {[%clk 0:00:01]} 43. Rf3 {[%clk 0:00:10]}  Qg4+ {[%clk 0:00:02]} 44. Kf1 {[%clk 0:00:11]} 1-0


[Site "https://www.chess.com"]